fUSD/lending_fUSD_20240429
["ID","MTS","AMOUNT","RATE_DAILY","PERIOD"]
[324876198,1714389042765,-632.1,0.00012898,2]
[324876200,1714389042774,-500.0,0.00012898,2]
[324876202,1714389042783,-500.0,0.00012898,2]
[324876204,1714389042793,-500.0,0.00012898,2]
[324876207,1714389042802,-415.01750535,0.00012898,2]
[324876209,1714389042811,-500.0,0.00012898,2]
[324876212,1714389042820,-596.85073709,0.00012898,2]
[324876214,1714389042829,-500.0,0.00012898,2]
[324876216,1714389042838,-500.0,0.00012898,2]
[324876218,1714389042847,-500.0,0.00012898,2]
[324876221,1714389042856,-500.0,0.00012898,2]
[324876223,1714389042865,-581.7,0.00012898,2]
[324876225,1714389042874,-500.0,0.00012898,2]
[324876227,1714389042883,-500.0,0.00012898,2]
[324876229,1714389042892,-360.61542317,0.00012898,2]
[324876231,1714389042901,-500.0,0.00012898,2]
[324876233,1714389042911,-500.0,0.00012898,2]
[324876235,1714389042919,-500.0,0.00012898,2]
[324876237,1714389042928,-500.0,0.00012898,2]
[324876239,1714389042937,-500.0,0.00012898,2]
[324876240,1714389042947,-500.0,0.00012898,2]
[324876243,1714389042958,-500.0,0.00012898,2]
[324876245,1714389042967,-500.0,0.00012898,2]
[324876247,1714389042976,-500.0,0.00012898,2]
[324876249,1714389042986,-500.0,0.00012898,2]
[324876250,1714389042996,-500.0,0.00012898,2]
[324876253,1714389043006,-289.12794368,0.00012898,2]
[324876255,1714389043015,-500.0,0.00012898,2]
[324876256,1714389043024,-503.68321708,0.00012898,2]
[324876259,1714389043035,-671.06,0.00012898,2]
[324876260,1714389043045,-500.0,0.00012898,2]
[324876263,1714389043058,-418.75,0.00012898,2]
[324876265,1714389043068,-500.0,0.00012898,2]
[324876267,1714389043077,-500.0,0.00012898,2]
[324876268,1714389043086,-500.0,0.00012898,2]
[324876270,1714389043095,-574.21762735,0.00012898,2]
[324876272,1714389043104,-500.0,0.00012898,2]
[324876274,1714389043113,-500.0,0.00012898,2]
[324876277,1714389043123,-500.0,0.00012898,2]
[324876279,1714389043132,-579.46,0.00012898,2]
[324876281,1714389043142,-521.66,0.00012898,2]
[324876283,1714389043151,-500.0,0.00012898,2]
[324876285,1714389043161,-500.0,0.00012898,2]
[324876287,1714389043170,-500.0,0.00012898,2]
[324876289,1714389043179,-500.0,0.00012898,2]
[324876291,1714389043189,-500.0,0.00012898,2]
[324876293,1714389043198,-500.0,0.00012898,2]
[324876295,1714389043206,-500.0,0.00012898,2]
[324876297,1714389043215,-500.0,0.00012898,2]
[324876299,1714389043226,-254.907032,0.00012898,2]
[324876301,1714389043235,-507.52359149,0.00012898,2]
[324876303,1714389043244,-2096.85,0.00012898,2]
[324876305,1714389043254,-500.0,0.00012898,2]
[324876307,1714389043263,-500.0,0.00012898,2]
[324876309,1714389043272,-500.0,0.00012898,2]
[324876311,1714389043281,-930.51,0.00012898,2]
[324876313,1714389043290,-500.0,0.00012898,2]
[324876315,1714389043299,-500.0,0.00012898,2]
[324876317,1714389043308,-500.0,0.00012898,2]
[324876319,1714389043317,-500.0,0.00012898,2]
[324876321,1714389043326,-500.0,0.00012898,2]
[324876323,1714389043335,-500.0,0.00012898,2]
[324876325,1714389043344,-500.0,0.00012898,2]
[324876327,1714389043354,-586.16,0.00012898,2]
[324876329,1714389043363,-515.69,0.00012898,2]
[324876330,1714389043374,-500.0,0.00012898,2]
[324876333,1714389043383,-500.0,0.00012898,2]
[324876335,1714389043392,-1013.26,0.00012898,2]
[324876337,1714389043402,-500.0,0.00012898,2]
[324876339,1714389043412,-500.0,0.00012898,2]
[324876341,1714389043422,-500.0,0.00012898,2]
[324876343,1714389043431,-500.0,0.00012898,2]
[324876345,1714389043440,-500.0,0.00012898,2]
[324876347,1714389043449,-1636.83,0.00012898,2]
[324876349,1714389043459,-750.3,0.00012898,2]
[324876350,1714389043467,-356.6611724,0.00012898,2]
[324876352,1714389043475,-500.0,0.00012898,2]
[324876354,1714389043486,-500.0,0.00012898,2]
[324876356,1714389043495,-500.0,0.00012898,2]
[324876358,1714389043504,-926.82,0.00012898,2]
[324876360,1714389043513,-356.86918121,0.00012898,2]
[324876362,1714389043523,-500.0,0.00012898,2]
[324876365,1714389043532,-500.0,0.00012898,2]
[324876367,1714389043548,-500.0,0.00012898,2]
[324876370,1714389043562,-500.0,0.00012898,2]
[324876372,1714389043572,-500.0,0.00012898,2]
[324876374,1714389043582,-500.0,0.00012898,2]
[324876376,1714389043592,-500.0,0.00012898,2]
[324876378,1714389043601,-500.0,0.00012898,2]
[324876380,1714389043611,-500.0,0.00012898,2]
[324876382,1714389043621,-500.0,0.00012898,2]
[324876384,1714389043631,-500.0,0.00012898,2]
[324876386,1714389043640,-500.0,0.00012898,2]
[324876388,1714389043650,-500.0,0.00012898,2]
[324876390,1714389043663,-500.0,0.00012898,2]
[324876392,1714389043673,-500.0,0.00012898,2]
[324876394,1714389043683,-500.0,0.00012898,2]
[324876396,1714389043693,-500.0,0.00012898,2]
[324876398,1714389043704,-451.07257657,0.00012898,2]
[324876400,1714389043714,-4666.97,0.00012898,2]
[324876402,1714389043723,-500.0,0.00012898,2]
[324876405,1714389043734,-500.0,0.00012898,2]
[324876407,1714389043744,-500.0,0.00012898,2]
[324876409,1714389043753,-500.0,0.00012898,2]
[324876411,1714389043763,-500.0,0.00012898,2]
[324876413,1714389043772,-500.0,0.00012898,2]
[324876415,1714389043781,-500.0,0.00012898,2]
[324876417,1714389043791,-500.0,0.00012898,2]
[324876419,1714389043800,-500.0,0.00012898,2]
[324876421,1714389043809,-500.0,0.00012898,2]
[324876423,1714389043818,-501.82784784,0.00012898,2]
[324876425,1714389043828,-500.0,0.00012898,2]
[324876427,1714389043837,-500.0,0.00012898,2]
[324876429,1714389043846,-521.83,0.00012898,2]
[324876431,1714389043855,-500.0,0.00012898,2]
[324876433,1714389043864,-500.0,0.00012898,2]
[324876435,1714389043874,-500.0,0.00012898,2]
[324876437,1714389043883,-500.0,0.00012898,2]
[324876438,1714389043892,-500.0,0.00012898,2]
[324876439,1714389043902,-500.0,0.00012898,2]
[324876440,1714389043912,-500.0,0.00012898,2]
[324876441,1714389043921,-523.36,0.00012898,2]
[324876442,1714389043931,-500.0,0.00012898,2]
[324876443,1714389043940,-500.0,0.00012898,2]
[324876444,1714389043949,-472.4454264,0.00012898,2]
[324876445,1714389043958,-500.0,0.00012898,2]
[324876447,1714389043967,-500.0,0.00012898,2]
[324876449,1714389043976,-500.0,0.00012898,2]
[324876451,1714389043985,-500.0,0.00012898,2]
[324876453,1714389043994,-500.0,0.00012898,2]
[324876455,1714389044003,-548.52583369,0.00012898,2]
[324876457,1714389044013,-500.0,0.00012898,2]
[324876458,1714389044023,-467.98289917,0.00012898,2]
[324876460,1714389044032,-817.7,0.00012898,2]
[324876461,1714389044042,-713.22,0.00012898,2]
[324876464,1714389044051,-500.0,0.00012898,2]
[324876465,1714389044061,-500.0,0.00012898,2]
[324876466,1714389044071,-500.0,0.00012898,2]
[324876467,1714389044080,-500.0,0.00012898,2]
[324876468,1714389044090,-500.0,0.00012898,2]
[324876469,1714389044099,-500.0,0.00012898,2]
[324876470,1714389044109,-500.0,0.00012898,2]
[324876471,1714389044118,-500.0,0.00012898,2]
[324876472,1714389044127,-500.0,0.00012898,2]
[324876473,1714389044137,-503.05806067,0.00012898,2]
[324876474,1714389044146,-509.90981004,0.00012898,2]
[324876475,1714389044156,-429.4750611,0.00012898,2]
[324876476,1714389044165,-500.0,0.00012898,2]
[324876477,1714389044174,-500.0,0.00012898,2]
[324876478,1714389044184,-500.0,0.00012898,2]
[324876480,1714389044193,-500.0,0.00012898,2]
[324876483,1714389044203,-197.12,0.00012898,2]
[324876485,1714389044212,-194.03194995,0.00012898,2]
[324876487,1714389044221,-500.0,0.00012898,2]
[324876489,1714389044232,-500.0,0.00012898,2]
[324876491,1714389044241,-500.0,0.00012898,2]
[324876492,1714389044251,-500.0,0.00012898,2]
[324876494,1714389044260,-500.0,0.00012898,2]
[324876496,1714389044269,-500.0,0.00012898,2]
[324876498,1714389044279,-500.0,0.00012898,2]
[324876499,1714389044288,-183.76,0.00012898,2]
[324876500,1714389044297,-5295.16,0.00012898,2]
[324876501,1714389044306,-500.0,0.00012898,2]
[324876502,1714389044317,-500.0,0.00012898,2]
[324876503,1714389044327,-595.86137244,0.00012898,2]
[324876504,1714389044336,-500.0,0.00012898,2]
[324876505,1714389044345,-500.0,0.00012898,2]
[324876506,1714389044355,-500.0,0.00012898,2]
[324876507,1714389044364,-500.0,0.00012898,2]
[324876508,1714389044373,-500.0,0.00012898,2]
[324876509,1714389044383,-500.0,0.00012898,2]
[324876510,1714389044392,-500.0,0.00012898,2]
[324876511,1714389044402,-500.0,0.00012898,2]
[324876512,1714389044411,-792.32,0.00012898,2]
[324876513,1714389044420,-8675.4046,0.00012899,2]
[324876514,1714389044429,-3916.8716,0.00012899,2]
[324876515,1714389044438,-13987.28154138,0.00012899,2]
[324876516,1714389044586,-150.0,0.00012786,2]
[324876517,1714389044596,-1302.17265862,0.00012899,2]
[324876518,1714389044606,-500.0,0.00012899,2]
[324876519,1714389044615,-500.0,0.00012899,2]
[324876520,1714389044625,-500.0,0.00012899,2]
[324876521,1714389044634,-420.28521524,0.00012899,2]
[324876522,1714389044643,-500.0,0.00012899,2]
[324876523,1714389044652,-500.0,0.00012899,2]
[324876524,1714389044664,-500.0,0.00012899,2]
[324876525,1714389044674,-500.0,0.00012899,2]
[324876526,1714389044684,-500.0,0.00012899,2]
[324876527,1714389044693,-500.0,0.00012899,2]
[324876528,1714389044703,-115.62844614,0.00012899,2]
[324876529,1714389044721,-177.8119939,0.00012899,2]
[324876530,1714389044731,-456.64308193,0.00012899,2]
[324876531,1714389044749,-43.35691807,0.00012899,2]
[324876532,1714389044758,-456.64308193,0.00012899,2]
[324876533,1714389044770,-43.35691807,0.00012899,2]
[324876534,1714389044779,-500.0,0.00012899,2]
[324876535,1714389044788,-78.68334767,0.00012899,2]
[324876536,1714389044808,-1947.906554,0.00012897,2]
[324876537,1714389044818,-421.31665233,0.00012899,2]
[324876538,1714389044828,-500.0,0.00012899,2]
[324876539,1714389044838,-500.0,0.00012899,2]
[324876540,1714389044847,-500.0,0.00012899,2]
[324876541,1714389044857,-199.424918,0.00012899,2]
[324876542,1714389044866,-500.0,0.00012899,2]
[324876543,1714389044876,-500.0,0.00012899,2]
[324876544,1714389044885,-500.0,0.00012899,2]
[324876545,1714389044895,-500.0,0.00012899,2]
[324876546,1714389044904,-5181.51,0.00012899,2]
[324876547,1714389044913,-500.0,0.00012899,2]
[324876548,1714389044924,-500.0,0.00012899,2]
[324876549,1714389044933,-326.42020553,0.00012899,2]
[324876550,1714389044943,-500.0,0.00012899,2]
[324876551,1714389044953,-500.0,0.00012899,2]
[324876552,1714389044962,-1206.05,0.00012899,2]
[324876553,1714389044972,-500.0,0.00012899,2]
[324876554,1714389044981,-500.0,0.00012899,2]
[324876555,1714389044990,-500.0,0.00012899,2]
[324876556,1714389044999,-500.0,0.00012899,2]
[324876557,1714389045009,-584.02317301,0.00012899,2]
[324876558,1714389045018,-500.0,0.00012899,2]
[324876559,1714389045027,-500.0,0.00012899,2]
[324876560,1714389045036,-500.0,0.00012899,2]
[324876561,1714389045046,-500.0,0.00012899,2]
[324876562,1714389045055,-500.0,0.00012899,2]
[324876563,1714389045065,-500.0,0.00012899,2]
[324876564,1714389045074,-500.0,0.00012899,2]
[324876565,1714389045083,-500.0,0.00012899,2]
[324876566,1714389045092,-500.0,0.00012899,2]
[324876567,1714389045101,-500.0,0.00012899,2]
[324876568,1714389045111,-540.0,0.000129,2]
[324876569,1714389045120,-10000.0,0.000129,2]
[324876570,1714389045130,-16593.41651034,0.000129,2]
[324876571,1714389045142,-278.16548255,0.000129,2]
[324876572,1714389045154,-406.16657604,0.000129,2]
[324876573,1714389045166,-287.14684292,0.000129,2]
[324876574,1714389045178,-1995.34,0.000129,2]
[324876575,1714389045197,-404.75808895,0.000129,2]
[324876576,1714389045209,-5240.08156891,0.000129,2]
[324876577,1714389045220,-20868.48,0.000129,2]
[324876585,1714389045804,-500.0,0.00012748,2]
[324876586,1714389045814,-500.0,0.00012898,2]
[324876587,1714389045823,-15747.61242291,0.000129,2]
[324876588,1714389045835,-1018.21757617,0.000129,2]
[324876589,1714389045862,-1471.2205633,0.000129,2]
[324876590,1714389045873,-417.92107087,0.000129,2]
[324876591,1714389045884,-479.93723386,0.000129,2]
[324876592,1714389045896,-440.74979347,0.000129,2]
[324876593,1714389045919,-454.68489641,0.000129,2]
[324876594,1714389045931,-1273.90601644,0.000129,2]
[324876595,1714389045976,-466.98336431,0.000129,2]
[324876596,1714389045987,-466.70474391,0.000129,2]
[324876597,1714389045998,-585.79333653,0.000129,2]
[324876598,1714389046009,-2303.75270085,0.000129,2]
[324876599,1714389046021,-516.2379924,0.000129,2]
[324876600,1714389046042,-2017.62724224,0.000129,2]
[324876603,1714389046053,-573.43013765,0.000129,2]
[324876605,1714389046065,-3269.17502,0.000129,2]
[324876622,1714389773654,80000.0,0.00025,120]
[324876647,1714390193098,-338.21,9.865e-05,2]
[324876648,1714390193122,-162.36879384,0.000109,2]
[324876649,1714390193145,-2450.0,0.00011,3]
[324876650,1714390193170,-765.27,0.00011688,2]
[324876651,1714390193196,-152.16,0.00011704,2]
[324876652,1714390193220,-150.0,0.00011713,2]
[324876653,1714390193244,-768.43,0.00011727,2]
[324876654,1714390193268,-172.49,0.00011783,2]
[324876655,1714390193294,-171.87,0.0001179,2]
[324876656,1714390193319,-192.63,0.00011899,2]
[324876657,1714390193343,-500.0,0.000121,4]
[324876658,1714390193366,-338.21,0.00012129,2]
[324876659,1714390193390,-1000.0,0.000122,4]
[324876660,1714390193413,-911.1,0.00012289,2]
[324876661,1714390193435,-911.1,0.00012289,2]
[324876662,1714390193458,-1171.15,0.00012289,2]
[324876663,1714390193480,-911.1,0.000123,2]
[324876664,1714390193502,-911.1,0.000123,2]
[324876665,1714390207944,82838.0,0.00025,120]
[324876674,1714390231907,-1600.0,0.000123,4]
[324876677,1714390231916,-510.0,0.00012329,2]
[324876680,1714390231926,-911.1,0.000124,2]
[324876683,1714390231936,-2100.0,0.000124,4]
[324876686,1714390231945,-2700.0,0.000125,4]
[324876688,1714390231954,-988.78857336,0.00012555,3]
[324876689,1714390231982,-337.22099754,0.00012555,3]
[324876690,1714390232082,-1302.24553177,0.00012555,3]
[324876691,1714390232095,-1771.536,0.00012555,3]
[324876692,1714390232143,-598.11050968,0.00012555,3]
[324876693,1714390232156,-2731.24946926,0.00012555,3]
[324876694,1714390232166,-500.0,0.000126,4]
[324876695,1714390232175,-1500.0,0.00012621,2]
[324876696,1714390232184,-150.0,0.00012652,2]
[324876697,1714390232194,-150.0,0.00012659,2]
[324876698,1714390232203,-150.0,0.00012664,2]
[324876699,1714390232213,-39.41101067,0.00012674,2]
[324876700,1714390232225,-110.58898933,0.00012674,2]
[324876701,1714390232235,-500.0,0.000127,4]
[324876702,1714390232244,-150.0,0.00012726,2]
[324876703,1714390232254,-150.0,0.0001273,2]
[324876705,1714390232263,-150.0,0.00012736,2]
[324876707,1714390232273,-10000.0,0.00012742,3]
[324876709,1714390232282,-1500.0,0.00012742,2]
[324876711,1714390232292,-500.0,0.00012748,2]
[324876712,1714390232302,-500.0,0.00012748,2]
[324876714,1714390232311,-633.61133551,0.00012748,2]
[324876717,1714390232322,-500.0,0.00012748,2]
[324876720,1714390232331,-500.0,0.00012748,2]
[324876722,1714390232340,-500.0,0.00012748,2]
[324876726,1714390232352,-216.31,0.00012748,2]
[324876729,1714390232361,-500.0,0.00012748,2]
[324876731,1714390232371,-640.19121083,0.00012748,2]
[324876733,1714390232380,-150.0,0.00012755,2]
[324876735,1714390232390,-150.0,0.00012757,2]
[324876737,1714390232400,-150.0,0.00012759,2]
[324876739,1714390232409,-150.0,0.00012763,2]
[324876741,1714390232418,-150.0,0.00012768,2]
[324876743,1714390232428,-150.0,0.00012778,2]
[324876745,1714390232438,-150.0,0.00012795,2]
[324876747,1714390232448,-10000.0,0.00012798,2]
[324876749,1714390232457,-2500.0,0.00012798,2]
[324876751,1714390232467,-8964.22392501,0.000128,2]
[324876753,1714390232480,-935.11650011,0.000128,2]
[324876755,1714390232493,-2605.49343482,0.000128,2]
[324876757,1714390232505,-317.625,0.000128,2]
[324876761,1714390232524,-27836.70230425,0.000128,2]
[324876762,1714390237917,-4022.7165844,0.000128,2]
[324876763,1714390237976,-9797.85808281,0.000128,2]
[324876764,1714390237991,-1052.08705618,0.000128,2]
[324876765,1714390238144,-16485.31131242,0.000128,2]
[324876766,1714390238153,-162.36879384,0.000128,2]
[324876767,1714390238163,-435.34291856,0.000128,2]
[324876768,1714390238173,-500.0,0.000128,4]
[324876769,1714390238182,-7500.0,0.000128,2]
[324876770,1714390238191,-150.0,0.00012802,2]
[324876771,1714390238201,-150.0,0.00012812,2]
[324876772,1714390238210,-284.85009614,0.00012813,2]
[324876773,1714390238219,-152.35107919,0.00012815,2]
[324876774,1714390238229,-300.0,0.00012818,2]
[324876775,1714390238238,-150.0,0.00012821,2]
[324876776,1714390238247,-150.0,0.00012834,2]
[324876777,1714390238257,-164.37354978,0.0001285,2]
[324876778,1714390238266,-150.0,0.00012852,2]
[324876779,1714390238276,-150.0,0.00012859,2]
[324876780,1714390238285,-291.16687505,0.00012863,2]
[324876781,1714390238295,-417.48727554,0.0001287,2]
[324876782,1714390238306,-1500.0,0.0001287,2]
[324876783,1714390238315,-435.3429185,0.00012875,2]
[324876785,1714390238325,-150.0,0.00012876,2]
[324876787,1714390238334,-1000.0,0.00012895,2]
[324876789,1714390238343,-736.40518097,0.00012895,2]
[324876791,1714390238361,-263.59481903,0.00012895,2]
[324876793,1714390238370,-500.0,0.00012895,2]
[324876795,1714390238378,-1000.0,0.00012896,2]
[324876797,1714390238387,-412.80061834,0.00012896,2]
[324876799,1714390238398,-87.19938166,0.00012896,2]
[324876801,1714390238407,-157.04292,0.00012897,2]
[324876803,1714390238416,-173.04292,0.00012897,2]
[324876804,1714390238425,-500.0,0.00012897,2]
[324876806,1714390238435,-295.75735051,0.00012897,2]
[324876809,1714390238453,-204.24264949,0.00012897,2]
[324876811,1714390238462,-174.37537592,0.00012897,2]
[324876874,1714390240293,-96.41384603,0.00012897,2]
[324876875,1714390240302,-377.82492027,0.00012897,2]
[324876876,1714390240312,-500.0,0.00012897,2]
[324876877,1714390240320,-500.0,0.00012898,2]
[324876878,1714390240330,-500.0,0.00012898,2]
[324876879,1714390240340,-500.0,0.00012898,2]
[324876880,1714390240351,-157.04292,0.00012898,2]
[324876881,1714390240360,-157.04292,0.00012898,2]
[324876882,1714390240369,-157.04292,0.00012898,2]
[324876883,1714390240378,-500.0,0.00012898,2]
[324876884,1714390240387,-651.13,0.00012898,2]
[324876885,1714390240397,-500.0,0.00012898,2]
[324876886,1714390240406,-500.0,0.00012898,2]
[324876887,1714390240415,-548.55,0.00012898,2]
[324876888,1714390240425,-500.0,0.00012898,2]
[324876889,1714390240435,-500.0,0.00012898,2]
[324876890,1714390240444,-374.80998212,0.00012898,2]
[324876891,1714390240453,-578.0,0.00012898,2]
[324876892,1714390240463,-500.0,0.00012898,2]
[324876893,1714390240472,-500.0,0.00012898,2]
[324876894,1714390240482,-500.0,0.00012898,2]
[324876895,1714390240491,-500.0,0.00012898,2]
[324876896,1714390240499,-282.95,0.00012898,2]
[324876897,1714390240508,-500.0,0.00012898,2]
[324876898,1714390240517,-500.0,0.00012898,2]
[324876899,1714390240527,-500.0,0.00012898,2]
[324876900,1714390240536,-500.0,0.00012898,2]
[324876901,1714390240545,-500.0,0.00012898,2]
[324876902,1714390240555,-500.0,0.00012898,2]
[324876903,1714390240564,-500.0,0.00012898,2]
[324876904,1714390240573,-500.0,0.00012898,2]
[324876905,1714390240582,-150.0,0.00012898,2]
[324876906,1714390240592,-500.0,0.00012898,2]
[324876907,1714390240603,-507.47177151,0.00012898,2]
[324876908,1714390240612,-500.0,0.00012898,2]
[324876909,1714390240620,-500.0,0.00012898,2]
[324876910,1714390240629,-500.0,0.00012898,2]
[324876911,1714390240638,-500.0,0.00012898,2]
[324876912,1714390240647,-500.0,0.00012898,2]
[324876913,1714390240656,-500.0,0.00012898,2]
[324876914,1714390240666,-500.0,0.00012898,2]
[324876915,1714390240675,-500.0,0.00012898,2]
[324876916,1714390240683,-500.0,0.00012898,2]
[324876917,1714390240693,-500.0,0.00012898,2]
[324876918,1714390240701,-500.0,0.00012898,2]
[324876919,1714390240710,-500.0,0.00012898,2]
[324876920,1714390240719,-500.0,0.00012898,2]
[324876921,1714390240729,-500.0,0.00012898,2]
[324876922,1714390240738,-500.0,0.00012898,2]
[324876923,1714390240747,-500.0,0.00012898,2]
[324876924,1714390240757,-500.0,0.00012898,2]
[324876925,1714390240766,-500.0,0.00012898,2]
[324876926,1714390240775,-500.0,0.00012898,2]
[324876927,1714390240784,-500.0,0.00012898,2]
[324876928,1714390240793,-500.0,0.00012898,2]
[324876929,1714390240802,-218.0524001,0.00012898,2]
[324876930,1714390240810,-500.0,0.00012898,2]
[324876931,1714390240819,-500.0,0.00012898,2]
[324876932,1714390240828,-500.0,0.00012898,2]
[324876933,1714390240837,-500.0,0.00012898,2]
[324876934,1714390240847,-500.0,0.00012898,2]
[324876935,1714390240858,-500.0,0.00012898,2]
[324876936,1714390240868,-500.0,0.00012898,2]
[324876937,1714390240877,-500.0,0.00012898,2]
[324876938,1714390240886,-500.0,0.00012898,2]
[324876939,1714390240894,-500.0,0.00012898,2]
[324876940,1714390240903,-703.05,0.00012898,2]
[324876941,1714390240912,-500.0,0.00012898,2]
[324876942,1714390240921,-500.0,0.00012898,2]
[324876943,1714390240931,-500.0,0.00012898,2]
[324876944,1714390240940,-500.0,0.00012898,2]
[324876945,1714390240949,-500.0,0.00012898,2]
[324876946,1714390240958,-500.0,0.00012898,2]
[324876947,1714390240968,-500.0,0.00012898,2]
[324876948,1714390240982,-500.0,0.00012898,2]
[324876949,1714390240992,-500.0,0.00012898,2]
[324876950,1714390241001,-500.0,0.00012898,2]
[324876951,1714390241010,-500.0,0.00012898,2]
[324876952,1714390241022,-500.0,0.00012898,2]
[324876953,1714390241031,-500.0,0.00012898,2]
[324876954,1714390241040,-503.6,0.00012898,2]
[324876955,1714390241050,-500.0,0.00012898,2]
[324876956,1714390241060,-500.0,0.00012898,2]
[324876957,1714390241069,-500.0,0.00012898,2]
[324876958,1714390241078,-500.92025584,0.00012898,2]
[324876959,1714390241088,-500.0,0.00012898,2]
[324876960,1714390241097,-501.59399651,0.00012898,2]
[324876961,1714390241108,-501.18413945,0.00012898,2]
[324876962,1714390241117,-500.0,0.00012898,2]
[324876963,1714390241126,-2009.48,0.00012898,2]
[324876964,1714390241135,-947.74,0.00012898,2]
[324876965,1714390241144,-500.0,0.00012898,2]
[324876966,1714390241154,-555.32,0.00012898,2]
[324876967,1714390241163,-544.1913715,0.00012898,2]
[324876968,1714390241172,-500.0,0.00012898,2]
[324876969,1714390241180,-616.72,0.00012898,2]
[324876970,1714390241189,-500.0,0.00012898,2]
[324876971,1714390241198,-1024.14,0.00012898,2]
[324876972,1714390241207,-248.22497601,0.00012898,2]
[324876973,1714390241216,-500.0,0.00012898,2]
[324876974,1714390241226,-500.0,0.00012898,2]
[324876975,1714390241234,-541.6,0.00012898,2]
[324876976,1714390241243,-500.0,0.00012898,2]
[324876977,1714390241253,-500.0,0.00012898,2]
[324876978,1714390241263,-500.0,0.00012898,2]
[324876979,1714390241272,-503.75794463,0.00012898,2]
[324876980,1714390241281,-500.0,0.00012898,2]
[324876981,1714390241290,-500.0,0.00012898,2]
[324876982,1714390241300,-500.0,0.00012898,2]
[324876983,1714390241309,-500.0,0.00012898,2]
[324876984,1714390241318,-1671.61,0.00012898,2]
[324876985,1714390241327,-500.0,0.00012898,2]
[324876986,1714390241336,-500.0,0.00012898,2]
[324876987,1714390241345,-500.0,0.00012898,2]
[324876988,1714390241358,-923.03,0.00012898,2]
[324876989,1714390241367,-500.0,0.00012898,2]
[324876990,1714390241376,-500.0,0.00012898,2]
[324876991,1714390241385,-500.0,0.00012898,2]
[324876992,1714390241395,-500.0,0.00012898,2]
[324876993,1714390241404,-500.0,0.00012898,2]
[324876994,1714390241413,-500.0,0.00012898,2]
[324876995,1714390241423,-500.0,0.00012898,2]
[324876996,1714390241432,-500.0,0.00012898,2]
[324876997,1714390241441,-500.0,0.00012898,2]
[324876998,1714390241452,-500.0,0.00012898,2]
[324876999,1714390241461,-752.56,0.00012898,2]
[324877000,1714390241471,-500.0,0.00012898,2]
[324877001,1714390241479,-500.0,0.00012898,2]
[324877002,1714390241489,-500.0,0.00012898,2]
[324877003,1714390241498,-500.0,0.00012898,2]
[324877004,1714390241507,-500.0,0.00012898,2]
[324877005,1714390241516,-520.04,0.00012898,2]
[324877006,1714390241525,-500.0,0.00012898,2]
[324877007,1714390241534,-500.0,0.00012898,2]
[324877008,1714390241543,-500.0,0.00012898,2]
[324877009,1714390241552,-500.0,0.00012898,2]
[324877010,1714390241561,-500.0,0.00012898,2]
[324877011,1714390241571,-500.0,0.00012898,2]
[324877012,1714390241580,-500.0,0.00012898,2]
[324877013,1714390241590,-360.10387639,0.00012898,2]